bitfinex/quotes_ETHUSD_20251119
["timestamp","ask_amount","ask_price","bid_price","bid_amount"]
[1763589456818,0.4561,2995.3,2995.1,0.001]
[1763589457024,0.324,2995.2,2995.1,0.001]
[1763589457232,0.805,2995.2,2995.1,0.001]
[1763589459514,0.324,2995.2,2995.1,0.001]
[1763589459730,0.4814,2995.5,2995.1,0.001]
[1763589459941,0.4759,2995.2,2995.1,0.001]
[1763589460353,0.9573,2995.2,2995.1,0.001]
[1763589461339,0.4759,2995.2,2995.1,0.001]
[1763589461854,0.9573,2995.2,2995.1,0.001]
[1763589462159,0.4759,2995.2,2995.1,0.001]
[1763589463763,0.4814,2995.5,2995.1,0.001]
[1763589463947,0.6721,2995.8,2995.1,0.001]
[1763589464457,0.4814,2995.7,2995.1,0.001]
[1763589465546,0.4759,2995.2,2995.1,0.001]
[1763589465932,0.9573,2995.2,2995.1,0.001]
[1763589470268,0.4759,2995.2,2995.1,0.001]
[1763589471766,0.1907,2995.8,2995.1,0.6405]
[1763589471961,0.4759,2995.2,2995.1,0.001]
[1763589472680,0.9573,2995.2,2995.1,0.001]
[1763589478068,0.4759,2995.2,2995.1,0.001]
[1763589478265,0.9573,2995.2,2995.1,0.001]
[1763589478979,0.4759,2995.2,2995.1,0.001]
[1763589479176,0.002,2995.4,2995.1,0.001]
[1763589479400,0.4834,2995.4,2995.1,0.001]
[1763589479899,0.002,2995.4,2995.1,0.001]
[1763589480272,0.4759,2995.2,2995.1,0.001]
[1763589480887,0.9573,2995.2,2995.1,0.001]
[1763589482367,1.362804,2995.2,2995.1,0.001]
[1763589483402,0.9573,2995.2,2995.1,0.001]
[1763589483904,0.002,2995.4,2995.1,0.001]
[1763589483905,0.002,2995.4,2995.1,0.6405]
[1763589484114,0.4759,2995.2,2995.1,0.001]
[1763589484610,0.9573,2995.2,2995.1,0.001]
[1763589486397,0.002,2995.4,2995.1,0.001]
[1763589486591,0.4759,2995.2,2995.1,0.001]
[1763589486787,0.002,2995.4,2995.1,0.001]
[1763589486981,0.4759,2995.2,2995.1,0.001]
[1763589487482,0.1888,2994.9,2993.1,0.001]
[1763589487685,0.1888,2994.9,2993.1,0.4913]
[1763589487686,0.405504,2994.8,2993.1,0.4913]
[1763589487936,2.06399269,2994.8,2993.1,0.4913]
[1763589488131,1.59010396,2994.8,2993.1,0.4913]
[1763589488288,0.405504,2994.6,2993.1,0.4913]
[1763589488820,0.4813,2994.5,2993.1,0.4913]
[1763589490332,0.4813,2994.5,2993.2,0.114]
[1763589490947,0.4813,2994.5,2993.3,0.488]
[1763589491313,0.4813,2994.5,2993.2,0.114]
[1763589492037,0.4813,2994.5,2993.2,0.602]
[1763589492534,0.4813,2994.5,2993.2,3.9428977]
[1763589492699,0.4813,2994.5,2993.2,0.602]
[1763589492894,0.4813,2994.5,2993.2,3.94290113]
[1763589493099,0.1888,2994.9,2993.2,7.28380718]
[1763589493299,0.4813,2994.6,2993.3,0.488]
[1763589493605,0.1888,2994.9,2993.4,0.405504]
[1763589493803,0.1888,2994.9,2993.5,0.18004966]
[1763589494035,0.1888,2994.9,2993.5,0.66804966]
[1763589494637,0.6701,2994.9,2993.6,0.488]
[1763589495304,0.1888,2994.9,2993.6,0.488]
[1763589495498,0.002,2995.2,2994.8,0.4638]
[1763589495702,0.002,2995.2,2994.6,0.1285]
[1763589497670,0.4649,2994.7,2993.5,0.18004966]
[1763589497961,0.701304,2994.6,2993.4,0.114]
[1763589498147,0.701304,2994.6,2993.4,0.602]
[1763589498354,0.4813,2994.5,2993.4,0.602]
[1763589498750,0.4813,2994.5,2993.4,0.114]
[1763589499958,0.4813,2994.5,2993.4,0.602]
[1763589500328,0.4813,2994.5,2993.5,0.03340571]
[1763589500553,0.405504,2995.1,2993.4,3.94265022]
[1763589500768,0.405504,2994.9,2993.4,3.45465022]
[1763589501060,0.002,2995.2,2995.1,0.6222]
[1763589501264,0.002,2995.2,2995.1,0.114]
[1763589501467,0.002,2995.2,2995.1,0.5778]
[1763589503064,0.002,2995.2,2994.9,0.1584]
[1763589503362,0.002,2995.2,2995.1,0.5778]
[1763589504931,0.002,2995.2,2995.1,5.31157932]
[1763589505243,0.002,2995.8,2995.4,0.505504]
[1763589505441,0.002,2995.8,2995.6,0.505504]
[1763589505773,0.002,2996.0,2995.9,0.1]
[1763589505932,0.002,2996.0,2995.9,1.112504]
[1763589506137,0.4519,2997.8,2996.2,0.405504]
[1763589506460,0.4519,2997.8,2996.7,0.6079]
[1763589506663,0.6495,2998.1,2996.7,0.7219]
[1763589506869,0.637,2997.9,2996.7,4.53600403]
[1763589508499,0.4519,2997.3,2996.4,0.1149]
[1763589508670,0.4519,2997.6,2996.7,0.607]
[1763589509234,0.637,2997.9,2996.7,1.0841]
[1763589509455,0.637,2997.9,2996.7,0.493]
[1763589509456,0.4519,2997.5,2996.7,0.493]
[1763589509647,0.4624,2996.8,2995.9,0.4771]
[1763589509859,0.4624,2996.8,2996.1,1.02099264]
[1763589510062,0.002,2996.8,2996.1,1.02099264]
[1763589510262,0.002,2996.8,2996.1,1.49809264]
[1763589510487,0.002,2996.8,2996.7,0.493]
[1763589510662,0.002,2996.8,2996.7,0.607]
[1763589510857,0.002,2996.8,2996.7,0.114]
[1763589511752,0.002,2996.8,2996.0,0.592]
[1763589512079,0.002,2996.8,2996.1,3.9287723]
[1763589512583,0.002,2996.8,2996.1,0.5911]
[1763589512792,0.002,2996.8,2996.1,1.02099264]
[1763589512793,0.4604,2996.2,2996.1,1.02099264]
[1763589512952,0.4604,2996.2,2994.9,0.2724]
[1763589513302,1.36148952,2996.7,2994.9,0.2724]
[1763589513303,0.3209,2995.6,2994.9,0.2724]
[1763589513802,0.1866,2995.5,2994.9,0.114]
[1763589514310,0.6385,2995.5,2994.9,0.114]
[1763589514483,0.4604,2995.0,2994.5,0.001]
[1763589514664,0.1866,2994.9,2994.5,0.001]
[1763589515086,0.4519,2994.8,2994.5,0.001]
[1763589516102,0.4604,2994.6,2994.5,0.001]
[1763589516796,0.4519,2994.8,2994.5,0.001]
[1763589517098,0.1866,2994.9,2994.5,0.001]
[1763589517099,0.4604,2994.6,2994.5,0.001]
[1763589517468,0.9123,2994.6,2994.5,0.001]
[1763589520521,0.1866,2994.9,2994.5,0.001]
[1763589520735,0.9626,2994.6,2994.2,0.001]
[1763589521014,0.2919,2994.3,2994.2,0.001]
[1763589521398,0.7631,2994.3,2994.2,0.001]
[1763589524801,1.168604,2994.3,2994.2,0.001]
[1763589526506,1.168604,2994.3,2993.9,0.001]
[1763589526507,0.405504,2994.2,2993.9,0.001]
[1763589526689,0.4894,2994.0,2993.9,0.001]
[1763589527206,0.9606,2994.0,2993.9,0.001]
[1763589527909,1.366104,2994.0,2993.9,0.001]
[1763589529949,0.1866,2994.9,2993.9,0.001]
[1763589529950,0.405504,2994.4,2993.9,0.001]
[1763589530098,0.4712,2994.6,2993.9,0.001]
[1763589530300,0.4712,2994.8,2993.9,0.001]
[1763589530494,0.405504,2994.6,2993.9,0.001]
[1763589530697,0.4914,2994.0,2993.9,0.001]
[1763589530925,0.9626,2994.0,2993.9,0.001]
[1763589531123,1.368104,2994.0,2993.9,0.001]
[1763589531723,0.9626,2994.0,2993.9,0.001]
[1763589533903,0.405504,2994.4,2993.9,0.001]
[1763589533904,0.4712,2994.4,2993.9,0.001]
[1763589534712,0.4914,2994.0,2993.9,0.001]
[1763589534934,0.4712,2994.4,2993.9,0.001]
[1763589535445,0.4914,2994.0,2993.9,0.001]
[1763589535849,0.9626,2994.0,2993.9,0.001]
[1763589536057,0.405504,2994.4,2993.9,0.001]
[1763589536349,0.4712,2994.3,2993.9,0.001]
[1763589536552,0.4914,2994.0,2993.9,0.001]
[1763589536956,0.4712,2994.3,2993.9,0.001]
[1763589537527,0.4712,2994.6,2993.9,0.001]
[1763589537761,0.4712,2994.8,2993.9,0.001]
[1763589538749,0.405504,2994.7,2993.9,0.001]
[1763589539060,0.1866,2995.5,2994.7,0.6459]
[1763589539259,0.1968,2995.8,2994.8,0.4865]
[1763589539422,0.4712,2995.6,2994.8,0.4865]
[1763589539627,0.1968,2995.8,2994.9,0.4535]
[1763589541038,0.4712,2995.7,2994.7,0.1594]
[1763589541234,0.4712,2995.7,2994.7,0.6129]
[1763589541450,0.405504,2995.6,2994.4,0.1594]
[1763589541757,0.405504,2995.4,2994.4,0.1594]
[1763589542156,0.405504,2995.7,2994.4,0.6129]
[1763589542543,0.4712,2995.7,2994.5,0.4535]
[1763589542889,0.1968,2995.8,2994.5,0.4535]
[1763589543253,0.002,2996.0,2994.6,0.405504]
[1763589543568,0.1968,2995.9,2994.7,0.114]
[1763589543770,0.1968,2995.9,2994.8,3.33912114]
[1763589544163,0.1968,2995.9,2994.9,0.4535]
[1763589544863,0.002,2995.7,2994.9,0.4535]
[1763589547247,0.002,2995.7,2994.4,0.1594]
[1763589547458,0.4712,2995.6,2994.4,0.7269]
[1763589547679,0.4712,2995.6,2994.4,0.2734]
[1763589548075,0.4712,2995.6,2994.5,0.4508]
[1763589554574,0.002,2995.7,2994.5,0.4508]
[1763589556704,0.002,2995.7,2994.5,3.79025566]
[1763589556910,0.002,2995.7,2994.6,0.4508]
[1763589558180,0.405504,2995.5,2994.5,0.25]
[1763589558567,0.4864,2995.4,2994.5,0.25]
[1763589560106,0.002,2995.7,2994.5,0.25]
[1763589560401,0.4864,2995.3,2994.5,0.25]
[1763589561609,0.6668,2994.6,2994.5,0.25]
[1763589562105,1.1532,2994.6,2994.5,0.25]
[1763589564870,0.6668,2994.6,2994.5,0.25]
[1763589565070,0.484,2994.6,2994.5,0.25]
[1763589565703,0.1828,2994.8,2994.5,0.25]
[1763589565893,0.1884,2995.1,2994.5,0.7139]
[1763589566912,0.665,2995.1,2994.5,0.7139]
[1763589567516,0.4766,2995.0,2994.5,0.25]
[1763589569714,0.1884,2995.1,2994.5,0.25]
[1763589569876,0.4766,2995.4,2994.5,0.7333]
[1763589570071,0.4766,2995.6,2994.5,0.7333]
[1763589570276,0.4766,2995.6,2994.6,0.4833]
[1763589571499,0.1904,2995.7,2994.6,0.4833]
[1763589571809,0.002,2995.7,2994.6,0.4833]
[1763589576149,0.002,2995.7,2994.6,1.39029264]
[1763589576491,0.002,2995.7,2994.5,1.27099264]
[1763589576718,0.002,2995.7,2994.7,0.4833]
[1763589576921,0.002,2995.7,2995.6,0.4639]
[1763589577230,0.002,2995.7,2995.2,0.114]
[1763589577694,0.4786,2995.7,2995.2,0.114]
[1763589579810,0.4786,2995.7,2995.0,0.1367]
[1763589580020,0.4983,2995.1,2994.5,0.25]
[1763589580233,0.4786,2995.7,2994.6,0.481]
[1763589580455,0.4786,2995.7,2994.5,0.25]
[1763589580751,0.4786,2995.7,2994.5,0.731]
[1763589580912,0.4786,2995.7,2994.5,0.90619926]
[1763589582051,0.4786,2995.7,2994.5,0.25]
[1763589583006,0.4786,2995.7,2994.5,0.731]
[1763589586151,0.4786,2995.7,2994.5,0.25]
[1763589586152,0.4983,2994.6,2994.5,0.25]
[1763589586653,0.9495,2994.6,2994.5,0.25]
[1763589592440,0.9495,2994.6,2994.1,0.001]
[1763589592441,0.405504,2994.5,2994.1,0.001]
[1763589592764,0.698404,2994.2,2994.1,0.001]
[1763589593064,1.149604,2994.2,2994.1,0.001]
[1763589593846,0.7441,2994.2,2994.1,0.001]
[1763589594763,0.2929,2994.2,2994.1,0.001]
[1763589594971,0.4512,2994.5,2994.1,0.001]
[1763589595181,0.1338135,2995.0,2994.4,0.615]
[1763589595479,0.002,2995.7,2994.5,3.17993111]
[1763589595679,0.002,2995.7,2994.9,0.4783]
[1763589595978,0.002,2995.7,2995.0,0.97739127]
[1763589596370,0.002,2995.7,2995.6,0.615]
[1763589596585,0.002,2995.7,2995.6,1.64239127]
[1763589596757,1.1461,2995.7,2994.5,0.001]
[1763589597092,0.2869,2995.2,2994.5,0.001]
[1763589600595,0.405504,2994.5,2994.1,0.001]
[1763589600776,0.899604,2994.3,2994.1,0.001]
[1763589600979,0.4941,2994.3,2994.1,0.001]
[1763589601163,0.9453,2994.3,2994.1,0.001]
[1763589603764,0.4512,2994.8,2994.1,0.001]
[1763589603980,0.4512,2994.8,2994.1,0.1377]
[1763589604203,0.4512,2995.2,2994.1,0.1377]
[1763589604363,0.13379738,2995.4,2994.1,0.1377]
[1763589604554,0.4512,2995.6,2994.2,0.482]
[1763589604751,0.1397,2996.0,2994.2,0.482]
[1763589604952,0.002,2995.7,2994.4,0.405504]
[1763589605168,0.002,2995.7,2994.5,0.595]
[1763589605801,0.002,2995.7,2994.5,0.481]
[1763589605954,0.002,2995.7,2994.6,0.114]
[1763589606154,0.002,2995.7,2994.7,0.114]
[1763589606403,0.002,2995.7,2994.7,0.595]
[1763589606902,0.002,2995.7,2994.7,0.481]
[1763589607700,0.4512,2995.6,2994.2,0.001]
[1763589607904,0.4512,2995.6,2994.3,0.4706]
[1763589608068,0.405504,2995.5,2994.3,0.4706]
[1763589608470,0.900204,2995.5,2994.3,0.4706]
[1763589608851,0.405504,2995.5,2994.3,0.4706]
[1763589609056,0.900204,2995.5,2994.3,0.4706]
[1763589609285,0.900204,2995.5,2994.2,0.115]
[1763589609466,0.4947,2995.4,2994.2,0.115]
[1763589609899,0.4947,2995.4,2994.2,0.5856]
[1763589610139,0.405504,2995.3,2994.2,0.001]
[1763589610628,0.405504,2995.1,2994.2,0.001]
[1763589610987,0.4903,2994.3,2994.2,0.001]
[1763589611426,0.4947,2995.2,2994.2,0.4594]
[1763589611634,0.4947,2995.2,2994.2,0.93]
[1763589612234,0.4947,2995.2,2994.2,0.4594]
[1763589612521,0.405504,2995.1,2994.2,0.001]
[1763589612885,0.405504,2994.9,2994.2,0.001]
[1763589613317,0.4947,2994.8,2994.2,0.001]
[1763589613738,0.4903,2994.3,2994.2,0.001]
[1763589616306,0.985,2994.3,2994.2,0.001]
[1763589616496,1.390504,2994.3,2994.2,0.001]
[1763589618202,0.985,2994.3,2994.2,0.001]
[1763589618899,1.390504,2994.3,2994.2,0.001]
[1763589619098,0.656304,2994.2,2993.9,0.001]
[1763589619316,0.893404,2994.0,2993.6,0.001]
[1763589619527,0.849504,2993.7,2993.6,0.001]
[1763589620027,1.344204,2993.7,2993.6,0.001]
[1763589627727,1.344204,2993.7,2993.3,0.001]
[1763589627728,0.405504,2993.6,2993.3,0.001]
[1763589628034,0.873704,2993.4,2992.5,0.001]
[1763589628202,0.682504,2993.2,2992.5,0.001]
[1763589628722,1.165104,2993.2,2992.5,0.001]
[1763589632314,1.354404,2993.1,2992.5,0.001]
[1763589632520,1.354404,2993.1,2990.5,0.4762]
[1763589632521,0.667304,2992.6,2990.5,0.4762]
[1763589632718,0.667304,2992.6,2990.0,0.31256584]
[1763589632719,0.405504,2992.4,2990.1,0.13394658]
[1763589632949,0.405504,2992.4,2991.0,0.6129]
[1763589633153,0.5991,2991.1,2989.9,0.001]
[1763589633351,0.888104,2991.0,2989.9,0.001]
[1763589633746,0.4826,2990.9,2989.9,0.001]
[1763589633925,0.405504,2990.8,2989.9,0.001]
[1763589634255,0.4682,2990.0,2989.9,0.001]
[1763589634453,0.4682,2990.0,2989.6,0.001]
[1763589634454,0.405504,2989.9,2989.6,0.001]
[1763589634756,0.3841,2989.7,2989.6,0.001]
[1763589634918,0.789604,2989.7,2989.6,0.001]
[1763589635124,1.272204,2989.7,2989.6,0.001]
[1763589635628,0.8667,2989.7,2989.6,0.001]
[1763589636032,1.272204,2989.7,2989.6,0.001]
[1763589636282,0.8667,2989.7,2989.6,0.001]
[1763589636451,0.3841,2989.7,2989.6,0.001]
[1763589637161,0.9508,2989.7,2989.6,0.001]
[1763589638427,0.405504,2989.8,2989.6,0.001]
[1763589638662,0.1309,2991.1,2989.6,0.001]
[1763589638663,0.1838,2990.2,2989.6,0.001]
[1763589638830,0.4557,2990.5,2989.6,0.001]
[1763589639031,0.1838,2990.4,2989.6,0.001]
[1763589639829,0.1309,2991.1,2990.3,0.6121]
[1763589640089,0.5866,2991.1,2990.3,0.1382]
[1763589640440,0.4557,2991.0,2990.0,0.1382]
[1763589640645,0.4557,2991.0,2989.6,0.001]
[1763589640954,0.405504,2990.9,2989.6,0.4967]
[1763589641572,0.405504,2990.7,2989.6,0.4967]
[1763589641943,0.405504,2990.6,2989.6,0.4967]
[1763589642577,0.405504,2990.4,2989.6,0.001]
[1763589643074,0.405504,2990.2,2989.6,0.001]
[1763589643799,0.405504,2990.5,2989.7,0.4957]
[1763589643978,0.4557,2991.0,2990.2,0.4739]
[1763589644471,0.405504,2990.9,2990.2,0.4739]
[1763589644678,0.4557,2991.0,2990.2,0.4739]
[1763589645045,0.405504,2990.9,2990.1,0.1382]
[1763589645442,0.405504,2990.7,2990.1,0.1382]
[1763589645861,0.405504,2990.7,2989.6,0.001]
[1763589645862,0.4557,2990.6,2989.6,0.001]
[1763589646070,0.405504,2990.5,2989.6,0.001]
[1763589646482,0.6482,2989.7,2989.6,0.001]
[1763589646848,1.1039,2989.7,2989.6,0.001]
[1763589647281,1.509404,2989.7,2989.6,0.001]
[1763589654588,0.6482,2989.7,2989.6,0.001]
[1763589654788,1.1039,2989.7,2989.6,0.001]
[1763589655211,1.509404,2989.7,2989.6,0.001]
[1763589660954,2.39721571,2991.4,2989.6,0.001]
[1763589660955,0.1838,2990.3,2989.6,0.4749]
[1763589661336,0.6395,2990.3,2989.6,0.001]
[1763589661722,0.4644,2989.7,2989.6,0.001]
[1763589661928,0.869904,2989.7,2989.6,0.001]
[1763589662135,0.405504,2989.7,2989.6,0.001]
[1763589663071,1.325604,2989.7,2989.6,0.001]
[1763589663677,0.405504,2989.7,2989.6,0.001]
[1763589664167,0.1838,2990.3,2989.6,0.4749]
[1763589664325,0.71976843,2990.7,2989.6,0.9706]
[1763589664657,0.4557,2990.7,2989.6,0.9706]
[1763589664958,0.002,2989.9,2989.6,0.9706]
[1763589665358,0.002,2989.9,2989.8,0.4739]
[1763589666045,0.002,2989.9,2989.8,0.9696]
[1763589668530,0.002,2989.9,2989.8,0.4739]
[1763589669631,0.002,2989.9,2989.6,0.001]
[1763589670248,0.858404,2989.7,2989.6,0.001]
[1763589670637,1.337904,2989.7,2989.6,0.001]
[1763589671470,2.2618531,2989.7,2989.6,0.001]
[1763589671636,0.405504,2989.0,2987.1,0.4547]
[1763589671828,0.405504,2987.9,2986.8,0.4547]
[1763589672327,0.1844,2987.8,2986.8,0.4547]
[1763589672567,0.885004,2988.1,2987.0,0.5929]
[1763589672769,0.405504,2988.4,2987.1,0.4547]
[1763589673274,0.405504,2988.3,2987.1,0.4547]
[1763589673574,0.405504,2988.3,2987.0,0.1382]
[1763589673778,0.405504,2988.2,2987.1,0.4547]
[1763589674147,0.405504,2988.1,2985.8,0.1377]
[1763589674455,0.405504,2988.1,2986.6,0.5929]
[1763589674654,0.405504,2987.9,2986.6,0.5929]
[1763589675166,0.405504,2987.7,2986.6,0.5929]
[1763589675581,0.885004,2987.7,2986.6,0.5929]
[1763589676080,0.4795,2987.6,2986.6,0.5929]
[1763589676382,0.4795,2987.6,2985.8,0.1377]
[1763589676383,0.405504,2986.6,2985.8,0.1377]
[1763589676846,0.71907876,2987.5,2985.6,0.1377]
[1763589676847,0.405504,2986.4,2985.6,0.1377]
[1763589677350,0.4795,2986.5,2984.4,0.1377]
[1763589677351,0.405504,2985.6,2984.4,0.1377]
[1763589677541,0.3691,2985.3,2984.4,0.5924]
[1763589677754,0.405504,2985.5,2984.4,0.5924]
[1763589677955,0.405504,2985.5,2984.2,0.17447979]
[1763589678172,1.042804,2984.3,2984.2,0.17447979]
[1763589678692,0.405504,2984.3,2984.2,0.17447979]
[1763589679051,1.337904,2984.3,2984.2,0.17447979]
[1763589679790,0.405504,2984.2,2982.6,0.1379]
[1763589679956,0.405504,2984.0,2982.6,0.1379]
[1763589680356,0.405504,2983.8,2982.6,0.1379]
[1763589680653,0.405504,2983.8,2982.0,0.1407]
[1763589680654,0.91751703,2983.8,2982.2,0.1379]
[1763589680894,0.405504,2983.6,2982.2,0.1379]
[1763589681120,0.405504,2983.4,2981.5,0.1407]
[1763589681261,0.4795,2983.3,2981.5,0.0907]
[1763589681459,0.405504,2983.2,2981.5,0.0907]
[1763589681976,0.405504,2983.0,2981.5,0.0907]
[1763589682183,0.1844,2981.6,2979.5,0.1379]
[1763589682368,0.1844,2981.6,2979.6,0.4547]
[1763589682369,0.405504,2981.5,2979.6,0.4547]
[1763589682576,0.4795,2981.4,2979.6,0.4547]
[1763589682772,0.4795,2981.4,2979.5,0.1379]
[1763589682773,0.405504,2981.3,2979.5,0.1379]
[1763589682976,0.405504,2981.1,2979.2,0.1379]
[1763589683195,0.405504,2981.1,2977.9,0.0907]
[1763589683372,0.405504,2980.9,2977.9,0.0907]
[1763589683676,0.405504,2979.0,2977.3,0.17471329]
[1763589683877,0.1844,2977.4,2977.3,0.17471329]
[1763589684179,1.069404,2977.4,2977.3,0.17471329]
[1763589684686,0.6639,2977.4,2975.9,0.1379]
[1763589684858,0.405504,2977.2,2975.0,0.5926]
[1763589685060,0.405504,2977.2,2974.5,0.4547]
[1763589685294,0.405504,2977.2,2974.0,0.0907]
[1763589685295,0.405504,2977.0,2974.0,0.5454]
[1763589685635,0.405504,2977.0,2973.7,0.00692204]
[1763589685636,0.405504,2977.0,2973.7,0.09762204]
[1763589685844,1.34540006,2976.9,2973.8,0.4547]
[1763589685991,0.405504,2976.8,2973.8,0.4547]
[1763589686192,0.894304,2976.8,2973.8,0.4547]
[1763589686392,0.405504,2977.2,2974.0,0.05]
[1763589686592,0.405504,2977.6,2973.8,0.4547]
[1763589686801,0.405504,2977.6,2973.7,0.0907]
[1763589686802,0.894304,2977.6,2973.9,0.4983]
[1763589687092,0.894304,2977.6,2974.0,0.116]
[1763589687435,0.405504,2977.4,2973.9,3.86084063]
[1763589687599,0.405504,2977.4,2974.0,0.096]
[1763589687795,0.405504,2977.2,2974.1,0.6143]
[1763589688036,0.6751,2977.7,2974.1,0.4983]
[1763589688194,0.6751,2977.7,2974.5,0.405504]
[1763589688392,0.1844,2978.8,2974.9,0.405504]
[1763589688393,0.4888,2978.4,2974.9,0.405504]
[1763589688648,0.1844,2978.8,2975.2,0.405504]
[1763589688857,0.1863,2979.4,2976.0,0.405504]
[1763589689130,0.1863,2980.8,2976.4,1.31249664]
[1763589689131,0.4888,2979.9,2976.4,1.31249664]
[1763589689314,0.4888,2979.9,2976.9,0.405504]
[1763589689523,0.4888,2980.4,2977.1,0.405504]
[1763589689851,0.4888,2979.9,2977.3,0.405504]
[1763589690005,0.4888,2979.9,2977.4,0.6405]
[1763589690205,0.4888,2979.9,2977.5,0.405504]
[1763589690415,0.4888,2979.9,2977.6,0.4983]
[1763589690620,0.4888,2979.9,2977.7,0.405504]
[1763589690819,0.4888,2980.3,2977.7,0.405504]
[1763589691006,0.4888,2979.9,2977.8,0.6143]
[1763589691216,0.4888,2980.3,2977.8,0.4983]
[1763589691410,0.4888,2979.9,2977.8,0.4983]
[1763589691597,0.1863,2980.8,2977.8,0.6143]
[1763589691824,0.4888,2980.3,2977.9,0.405504]
[1763589692150,0.4888,2980.3,2978.0,0.4983]
[1763589692347,0.4888,2980.3,2978.1,0.405504]
[1763589692670,0.4888,2980.3,2978.3,0.405504]
[1763589692797,0.1863,2980.4,2978.3,0.405504]
[1763589693129,0.1863,2981.6,2980.3,0.1379]
[1763589693503,0.4888,2982.3,2980.4,0.4983]
[1763589694200,0.1863,2983.2,2980.5,0.405504]
[1763589694201,0.4888,2982.8,2980.5,0.405504]
[1763589694397,0.4888,2982.8,2980.7,0.405504]
[1763589694626,0.1863,2983.2,2980.7,0.405504]
[1763589694937,0.1863,2983.2,2980.4,0.90699264]
[1763589694938,0.1863,2983.2,2980.9,0.405504]
[1763589695137,0.1863,2983.2,2981.0,0.90699264]
[1763589695299,0.1863,2983.2,2980.8,0.6143]
[1763589695300,0.1863,2983.2,2981.2,0.405504]
[1763589695502,0.1863,2983.2,2981.1,0.6362]
[1763589695842,0.1863,2983.2,2981.2,0.4983]
[1763589696028,0.4888,2983.5,2981.3,0.405504]
[1763589696229,0.4888,2983.5,2981.4,0.4983]
[1763589696700,0.405504,2983.4,2981.4,0.4983]
[1763589696899,0.405504,2983.4,2980.3,0.6362]
[1763589697129,0.405504,2983.2,2980.4,0.4983]
[1763589697511,0.405504,2983.0,2980.4,0.4983]
[1763589697946,0.405504,2982.8,2980.4,0.4983]
[1763589698441,0.405504,2982.6,2980.4,0.4983]
[1763589698937,0.405504,2982.4,2980.4,0.4983]
[1763589700364,0.676,2983.1,2980.5,0.405504]
[1763589700526,0.676,2983.1,2980.5,3.76064575]
[1763589700870,0.002,2983.5,2980.7,0.405504]
[1763589701156,0.002,2983.5,2981.3,0.1]
[1763589701330,0.002,2983.5,2981.5,1.31249664]
[1763589701535,0.002,2983.5,2981.6,0.116]
[1763589701725,0.002,2983.5,2981.6,0.5939]
[1763589701921,0.002,2983.5,2981.8,0.405504]
[1763589702327,0.002,2983.5,2983.4,0.1854]
[1763589703621,0.002,2983.5,2983.4,0.6633]
[1763589704230,0.002,2984.1,2983.4,0.6633]
[1763589704443,0.002,2984.1,2983.5,0.4779]
[1763589705080,0.1894,2987.1,2983.6,0.405504]
[1763589705227,0.4897,2986.8,2983.8,0.405504]
[1763589705423,0.4897,2986.8,2983.9,0.116]
[1763589705624,0.4897,2986.8,2984.0,0.405504]
[1763589706023,0.4897,2986.8,2984.2,0.405504]
[1763589706225,0.1894,2987.1,2984.2,0.405504]
[1763589706424,0.1894,2987.1,2984.4,0.405504]
[1763589706734,0.1894,2987.5,2984.4,0.405504]
[1763589706918,0.1894,2987.5,2984.9,0.1]
[1763589707124,0.1894,2987.5,2985.1,0.405504]
[1763589707320,0.94775265,2987.4,2984.5,0.1379]
[1763589707577,0.405504,2987.3,2984.5,0.1379]
[1763589707738,0.34538674,2987.2,2984.5,0.1379]
[1763589707923,0.405504,2987.1,2984.5,0.1379]
[1763589708125,0.895204,2987.1,2984.5,0.1379]
[1763589708572,0.405504,2986.9,2984.5,0.1379]
[1763589708927,0.405504,2986.7,2984.5,0.1379]
[1763589709455,0.405504,2986.5,2984.5,0.1379]
[1763589709958,0.405504,2986.3,2984.5,0.6158]
[1763589710463,0.405504,2986.1,2984.5,0.6158]
[1763589710956,0.405504,2986.1,2984.5,0.1379]
[1763589711262,0.405504,2986.1,2984.6,0.4779]
[1763589711837,0.6791,2986.6,2984.6,0.4779]
[1763589712235,0.4897,2986.5,2984.6,0.4779]
[1763589712844,0.405504,2986.4,2984.6,0.4779]
[1763589713261,0.405504,2986.5,2984.6,0.4779]
[1763589713829,0.895204,2986.5,2984.6,0.4779]
[1763589714224,0.1894,2986.6,2984.6,0.4779]
[1763589714225,0.405504,2986.3,2984.6,0.4779]
[1763589715135,0.4897,2986.4,2984.6,0.4779]
[1763589716068,0.4897,2987.2,2984.7,1.31249664]
[1763589716478,0.4897,2987.2,2984.9,0.405504]
[1763589716779,0.4897,2987.6,2984.9,0.405504]
[1763589716982,0.4897,2987.6,2985.0,0.4779]
[1763589717283,0.4897,2987.6,2985.1,0.522504]
[1763589717469,0.4897,2987.6,2985.3,1.31249664]
[1763589717675,0.4897,2988.2,2985.4,0.405504]
[1763589717873,0.4897,2988.2,2985.6,0.405504]
[1763589718190,0.002,2986.4,2985.6,0.505504]